bitfinex/quotes_SOLUSD_20250903
["timestamp","ask_amount","ask_price","bid_price","bid_amount"]
[1756892460533,13.59559401,209.45,209.37,37.04]
[1756892460534,0.7,209.39,209.37,37.04]
[1756892460747,0.7,209.38,209.37,2.63954444]
[1756892460956,13.59559401,209.44,209.37,2.63954444]
[1756892460957,0.7,209.4,209.37,2.63954444]
[1756892461255,26.14216157,209.46,209.36,41.81646159]
[1756892461256,26.0,209.46,209.39,2.63954444]
[1756892461427,0.7,209.43,209.4,2.63954444]
[1756892461753,0.7,209.42,209.4,2.63954444]
[1756892461959,0.7,209.41,209.4,2.63954444]
[1756892462153,0.7,209.41,209.35,26.72]
[1756892462321,0.7,209.41,209.36,41.81646159]
[1756892462526,0.76,209.4,209.38,2.63954444]
[1756892462835,0.76,209.4,209.37,37.04]
[1756892463040,0.76,209.4,209.39,2.63954444]
[1756892463420,0.76,209.4,209.37,37.04]
[1756892463626,0.76,209.4,209.39,7.41532169]
[1756892464435,0.76,209.4,209.39,4.77577725]
[1756892464635,0.76,209.4,209.39,7.41532169]
[1756892465552,0.76,209.4,209.39,9.2594969]
[1756892465729,0.76,209.4,209.37,37.02]
[1756892465929,0.7,209.39,209.37,9.25987889]
[1756892466142,0.7,209.39,209.37,4.77615924]
[1756892466339,0.06,209.4,209.38,4.48371965]
[1756892466935,0.7,209.39,209.37,4.77615924]
[1756892467140,0.7,209.38,209.36,4.48371965]
[1756892467338,0.7,209.37,209.36,9.26014732]
[1756892468128,0.7,209.37,209.36,4.77642767]
[1756892468329,0.7,209.37,209.36,9.26014732]
[1756892468633,0.76,209.4,209.36,9.26014732]
[1756892468939,0.06,209.4,209.37,0.72]
[1756892469135,0.06,209.4,209.39,4.48371965]
[1756892469336,0.06,209.4,209.37,13.59559401]
[1756892469544,0.06,209.4,209.39,4.48371965]
[1756892470653,0.06,209.4,209.39,9.9794969]
[1756892472248,0.06,209.4,209.39,9.2594969]
[1756892474057,0.06,209.4,209.39,4.77577725]
[1756892474257,0.06,209.4,209.39,9.2594969]
[1756892475254,0.06,209.4,209.39,4.77577725]
[1756892475456,0.06,209.4,209.39,22.85509091]
[1756892475932,0.06,209.4,209.39,23.56509091]
[1756892477355,0.06,209.4,209.39,22.85509091]
[1756892477536,0.06,209.4,209.39,59.87509091]
[1756892478041,0.06,209.4,209.39,60.58509091]
[1756892478236,133.4,209.57,209.39,60.58509091]
[1756892478451,4.48371965,209.48,209.42,4.48371965]
[1756892478645,0.72,209.47,209.42,4.48371965]
[1756892478852,0.72,209.46,209.41,4.48371965]
[1756892479158,13.87991715,209.52,209.45,4.48371965]
[1756892479354,13.59559401,209.5,209.46,4.48371965]
[1756892479550,4.48371965,209.47,209.41,13.59559401]
[1756892479743,18.3636368,209.42,209.41,13.59559401]
[1756892479943,18.3636368,209.42,209.3,9.26155051]
[1756892479944,89.28702513,209.42,209.3,9.26155051]
[1756892480247,4.76804279,209.39,209.32,4.48371965]
[1756892480431,13.59559401,209.42,209.33,42.88714613]
[1756892480640,0.72,209.4,209.36,30.48371965]
[1756892480836,4.54371965,209.43,209.36,30.48371965]
[1756892480837,0.72,209.39,209.36,30.48371965]
[1756892481057,0.06,209.43,209.37,4.48371965]
[1756892481267,0.72,209.41,209.37,4.48371965]
[1756892481455,0.72,209.4,209.37,4.48371965]
[1756892481772,0.72,209.39,209.36,26.0]
[1756892481957,0.72,209.39,209.36,30.48371965]
[1756892482160,0.72,209.41,209.36,30.48371965]
[1756892482360,0.72,209.4,209.38,4.77600534]
[1756892483075,13.59559401,209.42,209.39,0.71]
[1756892483241,0.06,209.43,209.41,4.48371965]
[1756892483441,0.06,209.43,209.42,5.19371965]
[1756892483858,0.06,209.43,209.42,2.62337207]
[1756892484057,0.06,209.43,209.42,7.10709172]
[1756892484238,0.06,209.43,209.42,1.91337207]
[1756892484440,0.06,209.43,209.42,11.88218483]
[1756892485061,1e-08,209.43,209.42,11.88218483]
[1756892485250,1e-08,209.45,209.42,11.88218483]
[1756892485564,1e-08,209.45,209.44,4.48371965]
[1756892485871,1e-08,209.45,209.44,42.02371965]
[1756892486049,1e-08,209.45,209.44,42.73371965]
[1756892486243,1e-08,209.45,209.44,42.02371965]
[1756892486563,0.72000001,209.45,209.44,4.77463712]
[1756892487748,14.31559402,209.45,209.41,4.77532114]
[1756892488044,4.48371965,209.43,209.41,4.77532114]
[1756892488371,18.07931366,209.42,209.38,4.77600534]
[1756892488575,0.72,209.41,209.38,4.77600534]
[1756892488772,0.72,209.4,209.38,4.77600534]
[1756892488939,0.72,209.39,209.38,4.77600534]
[1756892489850,0.72,209.39,209.36,13.59559401]
[1756892489851,5.20371965,209.39,209.36,4.77623385]
[1756892490060,0.72,209.38,209.36,4.77623385]
[1756892490368,0.72,209.37,209.36,4.77623385]
[1756892490568,0.72,209.37,209.33,16.71992596]
[1756892490770,4.48371965,209.39,209.33,21.20364561]
[1756892491081,26.72000001,209.45,209.38,4.48371965]
[1756892491278,26.72000001,209.45,209.42,4.48371965]
[1756892491279,0.72000001,209.45,209.42,4.48371965]
[1756892491563,1e-08,209.45,209.42,0.71]
[1756892491766,0.72000001,209.45,209.44,4.48371965]
[1756892491943,0.72000001,209.45,209.43,18.83469672]
[1756892492342,1e-08,209.45,209.43,18.83469672]
[1756892492695,1e-08,209.45,209.44,4.77463712]
[1756892493471,0.72000001,209.45,209.44,4.77463712]
[1756892494572,1e-08,209.45,209.44,9.25835677]
[1756892494852,1e-08,209.45,209.44,9.96835677]
[1756892496357,1e-08,209.45,209.44,9.25835677]
[1756892497864,1e-08,209.45,209.44,9.96835677]
[1756892498271,1e-08,209.45,209.44,35.96835677]
[1756892498572,1e-08,209.48,209.46,26.0]
[1756892498755,1e-08,209.48,209.47,38.27]
[1756892499357,1e-08,209.48,209.47,66.22245727]
[1756892499557,1e-08,209.48,209.47,70.70617692]
[1756892499763,1e-08,209.48,209.47,75.48013023]
[1756892499973,1e-08,209.48,209.47,37.88013023]
[1756892500170,0.72000001,209.48,209.47,11.17013023]
[1756892500358,1e-08,209.48,209.47,9.25767296]
[1756892500676,1e-08,209.48,209.47,14.45139261]
[1756892501047,0.72000001,209.48,209.47,9.25767296]
[1756892501253,0.72000001,209.48,209.47,4.77395331]
[1756892501855,0.72000001,209.48,209.45,4.77440916]
[1756892502059,0.72,209.47,209.45,4.77440916]
[1756892502263,1e-08,209.48,209.46,4.48371965]
[1756892502465,1e-08,209.48,209.45,9.25812881]
[1756892502977,0.72,209.47,209.45,9.25812881]
[1756892503284,0.72,209.46,209.43,4.80465605]
[1756892503485,0.72,209.45,209.43,4.80465605]
[1756892503695,0.72,209.44,209.43,4.80465605]
[1756892503859,0.72,209.44,209.43,0.03]
[1756892504266,5.20371965,209.44,209.43,0.03]
[1756892504660,18.79931366,209.44,209.43,0.03]
[1756892505688,0.72,209.44,209.43,0.03]
[1756892506070,5.20371965,209.44,209.43,0.03]
[1756892506779,0.72,209.44,209.43,0.03]
[1756892506983,5.20371965,209.44,209.43,0.03]
[1756892508185,0.72,209.44,209.43,0.03]
[1756892509106,1e-08,209.48,209.43,5.18371965]
[1756892509397,1e-08,209.48,209.47,4.48371965]
[1756892509596,1e-08,209.48,209.47,10.16849539]
[1756892509764,1e-08,209.48,209.47,10.83849539]
[1756892509965,1e-08,209.48,209.47,5.44395331]
[1756892510193,1e-08,209.48,209.47,15.6124487]
[1756892511397,1e-08,209.48,209.47,4.77395331]
[1756892512284,1e-08,209.48,209.46,4.77418122]
[1756892512491,1e-08,209.48,209.47,10.16849539]
[1756892512808,1e-08,209.48,209.46,5.44418122]
[1756892512809,1e-08,209.48,209.46,4.77418122]
[1756892513002,1e-08,209.48,209.46,14.94267661]
[1756892513178,1e-08,209.48,209.46,52.58267661]
[1756892513508,1e-08,209.48,209.47,0.67]
[1756892513679,1e-08,209.48,209.47,10.83849539]
[1756892513876,1e-08,209.48,209.47,48.47849539]
[1756892514282,1e-08,209.48,209.47,53.2524487]
[1756892514489,1e-08,209.48,209.47,43.08395331]
[1756892514679,1e-08,209.48,209.47,53.2524487]
[1756892514896,1e-08,209.48,209.47,52.5824487]
[1756892515090,1e-08,209.48,209.47,4.77395331]
[1756892515591,0.72000001,209.48,209.47,4.77395331]
[1756892516399,1e-08,209.48,209.47,4.77395331]
[1756892517283,0.72000001,209.48,209.47,4.77395331]
[1756892517883,1e-08,209.48,209.47,4.77395331]
[1756892518494,1e-08,209.48,209.46,4.77418122]
[1756892519308,0.72,209.47,209.46,4.77418122]
[1756892519495,13.59559401,209.46,209.43,0.03]
[1756892519694,10.16849539,209.44,209.43,0.03]
[1756892520090,10.88849539,209.44,209.43,0.03]
[1756892520294,0.72,209.44,209.43,0.03]
[1756892520507,10.88849539,209.44,209.43,0.03]
[1756892520711,24.76841254,209.44,209.43,0.03]
[1756892522192,14.59991715,209.44,209.43,0.03]
[1756892522385,24.76841254,209.44,209.43,0.03]
[1756892522586,14.31559401,209.44,209.43,0.03]
[1756892522895,24.4840894,209.44,209.43,0.03]
[1756892523491,14.31559401,209.44,209.43,0.03]
[1756892523693,24.4840894,209.44,209.43,0.03]
[1756892524128,10.16849539,209.45,209.43,0.03]
[1756892524727,10.16849539,209.44,209.43,0.03]
[1756892525194,10.88849539,209.44,209.43,0.03]
[1756892525394,0.72,209.44,209.43,0.03]
[1756892525588,24.76841254,209.44,209.43,0.03]
[1756892527080,34.93690793,209.44,209.43,0.03]
[1756892527308,39.71154505,209.44,209.43,0.03]
[1756892527516,39.59559401,209.41,209.4,0.03]
[1756892527698,13.59559401,209.4,209.38,0.03]
[1756892527883,20.57739259,209.39,209.38,0.03]
[1756892528307,21.29739259,209.39,209.38,0.03]
[1756892529706,13.59559401,209.39,209.38,0.03]
[1756892530408,13.59559401,209.41,209.38,0.03]
[1756892530604,6.98179858,209.4,209.38,0.03]
[1756892531099,7.70179858,209.4,209.38,0.03]
[1756892531301,6.98179858,209.39,209.38,0.03]
[1756892533713,21.53171573,209.39,209.38,0.03]
[1756892534795,63.90749298,209.39,209.38,0.03]
[1756892536203,59.13171573,209.39,209.38,0.03]
[1756892538117,63.90749298,209.39,209.38,0.03]
[1756892540496,59.13171573,209.39,209.38,0.03]
[1756892540832,63.90749298,209.39,209.38,0.03]
[1756892541798,21.53171573,209.39,209.38,0.03]
[1756892541996,63.86749298,209.39,209.38,0.03]
[1756892542902,39.87991715,209.36,209.35,0.03]
[1756892543104,84.44171573,209.36,209.35,0.03]
[1756892543303,85.11171573,209.36,209.35,0.03]
[1756892543698,47.53171573,209.36,209.35,0.03]
[1756892543899,85.11171573,209.36,209.35,0.03]
[1756892545036,89.88817732,209.36,209.35,0.03]
[1756892550747,13.87991715,209.35,209.33,0.03]
[1756892551039,217.78171573,209.34,209.33,0.03]
[1756892551329,218.45171573,209.34,209.33,0.03]
[1756892551839,180.93171573,209.34,209.33,0.03]
[1756892552014,218.47171573,209.34,209.33,0.03]
[1756892552604,180.93171573,209.34,209.33,0.03]
[1756892552807,173.27991715,209.34,209.33,0.03]
[1756892553227,173.27991715,209.34,209.33,0.72]
[1756892553228,20.57739259,209.34,209.33,0.72]
[1756892553428,13.59559401,209.35,209.33,0.72]
[1756892553629,16.46757898,209.35,209.33,0.72]
[1756892553834,13.59559401,209.35,209.34,0.69]
[1756892554305,13.59559401,209.35,209.33,0.03]
[1756892554511,13.59559401,209.35,209.34,0.69]
[1756892555018,16.46757898,209.35,209.33,0.03]
[1756892555215,13.59559401,209.35,209.34,0.69]
[1756892555416,58.11705431,209.35,209.34,0.69]
[1756892556014,20.57705431,209.35,209.34,0.69]
[1756892556907,6.9814603,209.35,209.34,0.69]
[1756892557118,13.59559401,209.34,209.33,0.03]
[1756892557635,20.57705431,209.34,209.33,0.03]
[1756892557930,20.57705431,209.34,209.33,0.72]
[1756892558435,58.09705431,209.34,209.33,0.03]
[1756892559041,51.11559401,209.34,209.33,0.03]
[1756892559241,58.09705431,209.34,209.33,0.72]
[1756892559537,58.09705431,209.34,209.33,0.03]
[1756892559752,51.11559401,209.34,209.33,0.72]
[1756892559929,58.09705431,209.34,209.33,0.72]
[1756892560535,58.09705431,209.34,209.33,0.03]
[1756892560718,58.09705431,209.34,209.33,0.72]
[1756892561324,58.09705431,209.34,209.33,0.03]
[1756892561639,20.57705431,209.34,209.33,0.03]
[1756892562230,13.59559401,209.34,209.33,0.03]
[1756892562435,20.57705431,209.34,209.33,0.68]
[1756892562628,20.57705431,209.34,209.33,0.03]
[1756892563615,20.57705431,209.34,209.33,0.68]
[1756892564118,13.59559401,209.34,209.33,0.68]
[1756892564527,13.59559401,209.34,209.33,0.03]
[1756892564943,13.59559401,209.34,209.33,5.45714613]
[1756892565246,13.59559401,209.36,209.33,5.45714613]
[1756892565543,13.59559401,209.36,209.34,0.65]
[1756892565752,13.59559401,209.36,209.34,5.4267754]
[1756892566437,20.57705431,209.36,209.34,5.4267754]
[1756892566830,20.57705431,209.36,209.35,0.65]
[1756892567428,20.57705431,209.36,209.33,0.68]
[1756892567631,6.9814603,209.37,209.34,0.65]
[1756892567943,6.9814603,209.37,209.35,0.65]
[1756892568147,6.9814603,209.37,209.34,0.65]
[1756892569025,6.9814603,209.36,209.34,5.42688918]
[1756892569226,13.59559401,209.37,209.34,5.42688918]
[1756892569433,6.9814603,209.36,209.34,5.42688918]
[1756892572952,6.9814603,209.36,209.34,5.45688918]
[1756892573144,6.9814603,209.35,209.34,0.03]
[1756892575436,2.87221506,209.35,209.34,0.03]
[1756892576231,37.4,209.36,209.34,0.03]
[1756892576433,40.27221506,209.36,209.34,0.03]
[1756892576657,40.27221506,209.36,209.34,0.68]
[1756892576855,37.4,209.36,209.34,0.68]
[1756892577168,50.99559401,209.36,209.35,0.65]
[1756892577461,13.59559401,209.36,209.34,0.03]
[1756892580057,16.46780907,209.36,209.34,0.03]
[1756892580663,13.59559401,209.36,209.34,0.03]
[1756892580865,16.46780907,209.36,209.34,0.68]
[1756892581073,0.06,209.37,209.35,3.52221506]
[1756892581252,0.06,209.37,209.36,0.65]
[1756892582267,2.93221506,209.37,209.34,0.03]
[1756892583079,2.93221506,209.37,209.34,4.80686629]
[1756892583981,2.93221506,209.37,209.34,5.45686629]
[1756892584480,0.06,209.37,209.35,0.65]
[1756892584649,0.06,209.37,209.36,0.65]
[1756892584852,0.06,209.37,209.34,5.45686629]
[1756892588152,0.06,209.37,209.35,0.65]
[1756892588351,0.77,209.37,209.34,4.80686629]
[1756892588569,0.06,209.37,209.34,4.80686629]
[1756892589076,0.06,209.37,209.34,5.45686629]
[1756892589573,4.48638522,209.35,209.34,0.03]
[1756892590378,5.19638522,209.35,209.34,0.03]
[1756892591249,18.79197923,209.35,209.34,0.03]
[1756892592176,19.07630237,209.35,209.34,0.03]
[1756892592489,23.85299212,209.35,209.34,0.03]
[1756892599276,55.36197923,209.35,209.34,0.03]
[1756892599775,81.64630237,209.35,209.34,0.03]
[1756892600186,76.87559401,209.35,209.34,0.03]
[1756892600385,81.36197923,209.35,209.34,0.03]
[1756892600586,13.59559401,209.35,209.34,0.75]
[1756892600787,50.87559401,209.35,209.34,0.75]
[1756892601380,51.15991715,209.35,209.34,0.75]
[1756892602090,51.15991715,209.35,209.34,0.03]
[1756892602888,55.64630237,209.35,209.34,0.03]
[1756892603282,56.33630237,209.35,209.34,0.03]
[1756892603785,55.36197923,209.35,209.34,0.03]
[1756892605401,50.87559401,209.35,209.34,0.03]
[1756892605698,50.87559401,209.35,209.34,0.75]
[1756892605902,13.59559401,209.35,209.34,0.75]
[1756892607705,13.59559401,209.35,209.34,0.03]
[1756892609379,0.06,209.37,209.34,0.75]
[1756892609584,0.06,209.37,209.36,9.26284681]
[1756892609802,0.06,209.37,209.36,9.98284681]
[1756892614611,1e-08,209.37,209.36,9.98284681]
[1756892615506,1e-08,209.37,209.36,11.89676819]
[1756892616013,1e-08,209.37,209.36,7.41038297]
[1756892616314,1e-08,209.37,209.36,11.89676819]
[1756892616700,1e-08,209.37,209.36,7.41038297]
[1756892616905,1e-08,209.37,209.36,11.89676819]
[1756892619209,1e-08,209.38,209.36,11.89676819]
[1756892619415,1e-08,209.38,209.37,5.20638522]
[1756892620492,1e-08,209.38,209.37,9.98261868]
[1756892622800,1e-08,209.38,209.37,11.89635693]
[1756892623405,0.06,209.42,209.37,23.83694058]
[1756892623603,0.06,209.42,209.41,4.48638522]
[1756892624099,0.06,209.42,209.41,19.55736229]
[1756892624718,0.06,209.42,209.41,5.20638522]
[1756892624900,0.06,209.42,209.41,19.55736229]
[1756892625303,0.06,209.42,209.41,5.20638522]
[1756892625619,0.06,209.42,209.41,9.98170636]
[1756892626907,0.06,209.42,209.41,23.57730037]
[1756892627416,1e-08,209.42,209.41,23.57730037]
[1756892627903,0.72,209.52,209.5,4.48638522]
[1756892628105,0.72,209.51,209.45,37.18]
[1756892628416,0.72,209.51,209.5,4.48638522]
[1756892628816,0.72,209.51,209.5,9.2596549]
[1756892629005,0.72,209.51,209.46,4.77418122]
[1756892629207,0.06,209.47,209.46,4.77418122]
[1756892630405,0.06,209.47,209.46,9.26056644]
[1756892631001,0.78,209.47,209.46,4.77418122]
[1756892632517,0.06,209.47,209.46,9.26056644]
[1756892634122,0.06,209.47,209.46,9.98056644]
[1756892634817,37.46432314,209.56,209.46,9.98056644]
[1756892634818,14.34754537,209.64,209.49,26.0]
[1756892635007,0.72,209.65,209.57,4.48638522]
[1756892635202,0.72,209.65,209.57,37.76]
[1756892635510,4.76858214,209.71,209.57,47.45277044]
[1756892635717,0.72,209.67,209.57,47.45277044]
[1756892635908,13.59559401,209.66,209.57,47.45277044]
[1756892636108,40.31559401,209.66,209.57,47.45277044]
[1756892636314,0.72,209.66,209.57,47.45277044]
[1756892636924,26.72,209.66,209.57,52.22444577]
[1756892637121,0.72,209.64,209.57,9.97806055]
[1756892637325,0.72,209.63,209.57,52.20444577]
[1756892638109,0.72,209.61,209.57,46.97806055]
[1756892638315,0.72,209.63,209.57,13.74444577]
[1756892638527,0.72,209.63,209.57,51.46444577]
[1756892638731,0.72,209.63,209.57,52.18444577]
[1756892638930,0.72,209.63,209.57,14.46444577]
[1756892640738,0.28432314,209.64,209.57,9.25806055]
[1756892641044,5.40638522,209.58,209.49,4.77349754]
[1756892641253,4.48638522,209.56,209.53,14.34274376]
[1756892641407,0.72,209.55,209.5,4.48638522]
[1756892641606,0.72,209.54,209.5,4.48638522]
[1756892641810,0.72,209.53,209.5,4.48638522]
[1756892642035,0.72,209.52,209.42,12.65717694]
[1756892642238,0.72,209.51,209.47,4.48638522]
[1756892642540,0.72,209.5,209.46,4.48638522]
[1756892642733,4.48638522,209.53,209.45,26.0]
[1756892642734,0.72,209.53,209.49,4.48638522]
[1756892642919,0.72,209.56,209.52,4.48638522]
[1756892643109,0.72,209.55,209.53,4.48638522]
[1756892643311,0.72,209.54,209.52,4.48638522]
[1756892643629,0.72,209.54,209.51,4.48638522]
[1756892644042,0.72,209.53,209.49,4.48638522]
[1756892644217,0.72,209.52,209.48,4.77361902]
[1756892644422,0.72,209.51,209.48,4.77361902]
[1756892644934,0.72,209.51,209.48,9.26000424]
[1756892646515,0.78,209.53,209.48,9.26000424]
[1756892646735,0.72,209.52,209.48,9.26000424]
[1756892646914,0.72,209.51,209.48,9.26000424]
[1756892647841,0.06,209.53,209.48,9.26000424]
[1756892647842,0.72,209.5,209.48,9.26000424]
[1756892648341,0.72,209.52,209.48,9.26000424]
[1756892648525,0.72,209.51,209.48,9.26000424]
[1756892649142,0.72,209.51,209.48,4.48638522]
[1756892649435,0.72,209.51,209.48,2.86727877]
[1756892649742,0.72,209.5,209.47,4.77395331]
[1756892650041,0.72,209.49,209.47,4.77395331]
[1756892650441,3.58727877,209.48,209.42,2.89727877]
[1756892650853,14.31559401,209.48,209.43,2.86727877]
[1756892651145,0.72,209.48,209.44,2.86727877]
[1756892651715,13.59559401,209.49,209.44,2.86727877]
[1756892651940,0.72,209.48,209.44,2.86727877]
[1756892652238,0.72,209.48,209.43,4.77484634]
[1756892652423,0.72,209.47,209.43,4.77484634]
[1756892652621,0.72,209.46,209.43,4.77484634]
[1756892652822,3.58727877,209.45,209.42,0.03]
[1756892653233,0.72,209.44,209.42,0.03]
[1756892654651,17.18287278,209.43,209.42,0.03]
[1756892654830,14.31559401,209.43,209.42,0.03]
[1756892655157,17.18287278,209.43,209.42,0.03]
[1756892655946,21.95773789,209.43,209.42,0.03]
[1756892656448,17.18287278,209.43,209.42,0.03]
[1756892657427,22.24206103,209.43,209.42,0.03]
[1756892660549,55.14719592,209.43,209.42,0.03]
[1756892661430,59.92206103,209.43,209.42,0.03]
[1756892662253,55.14719592,209.43,209.42,0.03]
[1756892662546,16.46287278,209.43,209.42,0.03]
[1756892663360,37.68,209.45,209.42,0.03]
[1756892663361,2.86727877,209.45,209.42,0.03]
[1756892663526,13.59559401,209.44,209.42,0.03]
[1756892663734,16.46287278,209.44,209.42,0.03]
[1756892663932,17.18287278,209.44,209.42,0.03]
[1756892665050,16.46287278,209.44,209.42,0.03]
[1756892665855,17.18287278,209.44,209.42,0.03]
[1756892666054,3.58727877,209.43,209.42,0.03]
[1756892666434,17.32503435,209.43,209.42,0.03]
[1756892666636,17.46719592,209.43,209.42,0.03]
[1756892671458,16.46287278,209.43,209.42,0.03]
[1756892671634,17.18287278,209.43,209.42,0.03]
[1756892672454,21.95773789,209.43,209.42,0.03]
[1756892672640,22.24206103,209.43,209.42,0.03]
[1756892675753,55.02719592,209.43,209.42,0.03]
[1756892675958,59.80206103,209.43,209.42,0.03]
[1756892678053,51.43991715,209.43,209.42,0.03]
[1756892678255,54.28719592,209.43,209.42,0.03]
[1756892678939,54.00287278,209.43,209.42,0.03]
[1756892679647,54.02287278,209.43,209.42,0.03]
[1756892680260,40.40727877,209.44,209.42,0.74]
[1756892680434,2.86727877,209.43,209.42,0.03]
[1756892680636,16.46287278,209.43,209.42,0.03]
[1756892682760,16.46287278,209.43,209.42,0.69]
[1756892682761,13.59559401,209.43,209.42,0.69]
[1756892683060,16.46287278,209.43,209.42,0.03]
[1756892687155,13.59559401,209.43,209.42,0.03]
[1756892690861,16.46287278,209.43,209.42,0.03]
[1756892692475,37.5,209.45,209.42,0.69]
[1756892692649,13.59559401,209.44,209.42,0.69]
[1756892692848,13.65559401,209.47,209.43,0.66]
[1756892693154,51.07559401,209.47,209.44,0.66]
[1756892693356,53.94287278,209.47,209.44,0.66]
[1756892693552,13.65559401,209.47,209.42,2.89727877]
[1756892693771,0.06,209.47,209.45,2.86727877]
[1756892693954,0.06,209.47,209.46,2.86727877]
[1756892694150,0.06,209.47,209.46,3.52727877]
[1756892694575,0.06,209.47,209.46,8.30145999]
[1756892698258,0.06,209.47,209.46,5.43418122]
[1756892700054,0.06,209.47,209.46,8.30145999]
[1756892700260,0.06,209.47,209.46,4.77418122]
[1756892700459,0.06,209.47,209.46,7.64145999]
[1756892700670,0.06,209.47,209.46,8.30145999]
[1756892701058,0.06,209.47,209.46,7.64145999]
[1756892701381,0.06,209.47,209.46,4.77418122]
[1756892701680,0.73,209.47,209.42,0.03]
[1756892701869,14.26559401,209.46,209.42,0.03]
[1756892702182,2.86727877,209.44,209.42,0.03]
[1756892702373,16.74719592,209.43,209.42,0.03]
[1756892702571,17.41719592,209.43,209.42,0.03]
[1756892708067,51.23991715,209.45,209.42,0.03]
[1756892708473,13.59559401,209.45,209.42,7.67237188]
[1756892708894,13.59559401,209.46,209.42,7.67237188]
[1756892709077,37.42,209.47,209.44,2.86727877]
[1756892709386,37.42,209.47,209.44,0.66]
[1756892709582,37.42,209.47,209.43,4.48221314]
[1756892709783,13.59559401,209.45,209.42,0.03]
[1756892710273,18.74780715,209.45,209.42,0.03]
[1756892710672,14.26559401,209.45,209.42,0.03]
[1756892710980,18.07780715,209.45,209.42,0.03]
[1756892711191,0.67,209.44,209.42,0.03]
[1756892711686,0.7,209.43,209.42,0.03]
[1756892711883,18.07780715,209.45,209.42,0.03]
[1756892712074,0.7,209.44,209.42,0.03]
[1756892713291,0.7,209.43,209.42,0.03]
[1756892713992,14.29559401,209.43,209.42,0.03]
[1756892714371,19.06213029,209.43,209.42,0.03]
[1756892714788,23.8369954,209.43,209.42,0.03]
[1756892717297,19.06213029,209.43,209.42,0.03]
[1756892717870,14.57991715,209.43,209.42,0.03]
[1756892718196,19.06213029,209.43,209.42,0.03]
[1756892718379,23.8369954,209.43,209.42,0.03]
[1756892718697,19.06213029,209.43,209.42,0.03]
[1756892719177,18.36213029,209.43,209.42,0.03]
[1756892719378,51.21991715,209.43,209.42,0.03]
[1756892719999,56.40213029,209.43,209.42,0.03]
[1756892720900,61.1769954,209.43,209.42,0.03]
[1756892721096,56.40213029,209.43,209.42,0.03]
[1756892721288,55.70213029,209.43,209.42,0.03]
[1756892721802,56.40213029,209.43,209.42,0.03]
[1756892721995,61.1769954,209.43,209.42,0.03]
[1756892726203,18.36213029,209.43,209.42,0.03]
[1756892726393,55.66213029,209.43,209.42,0.03]
[1756892726584,51.17991715,209.43,209.42,0.03]
[1756892727581,13.59559401,209.43,209.42,0.69]
[1756892728707,13.59559401,209.43,209.42,0.03]
[1756892731105,56.05780715,209.43,209.42,0.03]
[1756892731404,56.34213029,209.43,209.42,0.03]
[1756892731790,61.1169954,209.43,209.42,0.03]
[1756892732114,56.63478226,209.43,209.42,0.03]
[1756892732408,61.1169954,209.43,209.42,0.03]
[1756892734512,56.34213029,209.43,209.42,0.03]
[1756892734813,51.15991715,209.43,209.42,0.03]
[1756892735305,50.87559401,209.43,209.42,0.03]
[1756892735493,51.15991715,209.43,209.42,0.03]
[1756892735688,56.34213029,209.43,209.42,0.03]
[1756892735896,61.1169954,209.43,209.42,0.03]
[1756892753021,23.8369954,209.43,209.42,0.03]
[1756892753324,61.1169954,209.43,209.42,0.03]
[1756892755626,39.87991715,209.4,209.39,0.03]
[1756892755829,86.12434343,209.4,209.39,0.03]
[1756892756000,81.64213029,209.4,209.39,0.03]
[1756892756199,49.13767947,209.4,209.39,0.03]
[1756892756411,86.41767947,209.4,209.39,0.03]